bitfinex/quotes_BTCUSD_20250617
["timestamp","ask_amount","ask_price","bid_price","bid_amount"]
[1750141581221,2.00989488,107070.0,107060.0,0.75206444]
[1750141582560,2.24043528,107070.0,107060.0,0.75206444]
[1750141582773,2.37446728,107070.0,107060.0,0.75206444]
[1750141583003,1.7789953,107070.0,107060.0,0.75206444]
[1750141583220,2.43349134,107070.0,107060.0,0.75206444]
[1750141583663,2.43249134,107070.0,107060.0,0.75206444]
[1750141583883,2.3759621,107070.0,107060.0,0.75206444]
[1750141584115,1.71065094,107070.0,107060.0,0.75206444]
[1750141584331,1.71765094,107070.0,107060.0,0.75306444]
[1750141584554,1.71111498,107070.0,107060.0,0.75306444]
[1750141584817,1.75477861,107070.0,107060.0,0.75306444]
[1750141586013,1.66772192,107070.0,107060.0,0.75306444]
[1750141586239,1.56093861,107070.0,107060.0,0.75306444]
[1750141586462,1.75473861,107070.0,107060.0,0.75306444]
[1750141587419,1.75473691,107070.0,107060.0,0.75306444]
[1750141588522,1.7547368,107070.0,107060.0,0.75306444]
[1750141590079,1.7373324,107070.0,107060.0,0.75306444]
[1750141590293,1.75473531,107070.0,107060.0,0.75306444]
[1750141592949,1.70473277,107070.0,107060.0,0.75306444]
[1750141593166,1.75473277,107070.0,107060.0,0.75306444]
[1750141593384,1.70473277,107070.0,107060.0,0.75306444]
[1750141593604,1.75473277,107070.0,107060.0,0.75306444]
[1750141595595,1.75473255,107070.0,107060.0,0.75306444]
[1750141595810,1.75473201,107070.0,107060.0,0.75306444]
[1750141596016,1.70473201,107070.0,107060.0,0.75306444]
[1750141596266,1.75473201,107070.0,107060.0,0.75306444]
[1750141597779,1.95217201,107070.0,107060.0,0.75306444]
[1750141598211,1.90217352,107070.0,107060.0,0.75306444]
[1750141598425,1.95217352,107070.0,107060.0,0.75306444]
[1750141598638,1.95217411,107070.0,107060.0,0.75306444]
[1750141599950,1.94564802,107070.0,107060.0,0.75306444]
[1750141600202,1.95217497,107070.0,107060.0,0.75306444]
[1750141601555,1.95217724,107070.0,107060.0,0.75306444]
[1750141601779,2.18271764,107070.0,107060.0,0.75306444]
[1750141603251,2.16043564,107070.0,107060.0,0.75306444]
[1750141603437,1.95217241,107070.0,107060.0,0.75306444]
[1750141604146,1.92824029,107070.0,107060.0,0.75306444]
[1750141604336,1.95217986,107070.0,107060.0,0.75306444]
[1750141604582,1.90217986,107070.0,107060.0,0.75306444]
[1750141604795,1.95217986,107070.0,107060.0,0.75306444]
[1750141605467,1.90217986,107070.0,107060.0,0.75306444]
[1750141605682,1.95217986,107070.0,107060.0,0.75306444]
[1750141605899,2.18272026,107070.0,107060.0,0.75306444]
[1750141607203,2.18272099,107070.0,107060.0,0.75306444]
[1750141607883,2.02908099,107070.0,107060.0,0.75306444]
[1750141608097,2.13268099,107070.0,107060.0,0.75306444]
[1750141608313,2.18268099,107070.0,107060.0,0.75306444]
[1750141609381,2.13268171,107070.0,107060.0,0.75306444]
[1750141609591,2.14554536,107070.0,107060.0,0.75306444]
[1750141610047,1.91501021,107070.0,107060.0,0.75306444]
[1750141610451,1.86501021,107070.0,107060.0,0.74993528]
[1750141610705,1.91502345,107070.0,107060.0,0.74993528]
[1750141610925,1.90848903,107070.0,107060.0,0.74993528]
[1750141611825,1.85848903,107070.0,107060.0,0.74993528]
[1750141612046,1.90848903,107070.0,107060.0,0.74993528]
[1750141612284,1.85848903,107070.0,107060.0,0.74993528]
[1750141612515,1.90848903,107070.0,107060.0,0.74993528]
[1750141612984,1.90848917,107070.0,107060.0,0.74993528]
[1750141613441,1.85848917,107070.0,107060.0,0.74993528]
[1750141613671,1.90848917,107070.0,107060.0,0.74993528]
[1750141614328,1.85848917,107070.0,107060.0,0.74993528]
[1750141614602,1.90848917,107070.0,107060.0,0.74993528]
[1750141614845,1.06689645,107070.0,107060.0,0.78023528]
[1750141615063,1.43210942,107070.0,107060.0,0.78023528]
[1750141615289,1.20121235,107070.0,107060.0,0.78023528]
[1750141615997,1.39493235,107070.0,107060.0,0.78023528]
[1750141616230,1.39489235,107070.0,107060.0,0.78023528]
[1750141616458,1.3670074,107070.0,107060.0,0.78023528]
[1750141616912,1.34958217,107070.0,107060.0,0.78023528]
[1750141620326,1.15590217,107070.0,107060.0,0.78023528]
[1750141620582,1.34958217,107070.0,107060.0,0.78023528]
[1750141621907,0.72792177,107070.0,107060.0,0.78023528]
[1750141622134,1.34958217,107070.0,107060.0,0.78023528]
[1750141622363,1.19602217,107070.0,107060.0,0.78023528]
[1750141622608,0.56321211,107070.0,107060.0,0.78023528]
[1750141622840,0.983305,107070.0,107060.0,0.77923528]
[1750141623062,0.99652284,107070.0,107060.0,0.77923528]
[1750141623302,1.02738324,107070.0,107060.0,0.77823528]
[1750141623522,1.22306324,107070.0,107060.0,0.77923528]
[1750141623750,1.02938324,107070.0,107060.0,0.77923528]
[1750141623996,1.22306324,107070.0,107060.0,0.77923528]
[1750141626119,1.06950324,107070.0,107060.0,0.77923528]
[1750141626401,1.22302324,107070.0,107060.0,0.77923528]
[1750141633421,0.99248284,107070.0,107060.0,0.77923528]
[1750141633648,1.22302324,107070.0,107060.0,0.77923528]
[1750141634789,1.02938324,107070.0,107060.0,0.77923528]
[1750141635014,1.22298324,107070.0,107060.0,0.77923528]
[1750141635238,1.25858086,107070.0,107060.0,0.77923528]
[1750141642969,0.87452046,107070.0,107060.0,0.77923528]
[1750141643222,1.02800046,107070.0,107060.0,0.77923528]
[1750141643434,1.25854086,107070.0,107060.0,0.77923528]
[1750141644098,1.02800046,107070.0,107060.0,0.77923528]
[1750141644315,1.02800046,107070.0,107060.0,1.00977568]
[1750141644534,1.02800046,107070.0,107060.0,0.77923528]
[1750141645844,1.25854086,107070.0,107060.0,0.77923528]
[1750141646132,0.83444046,107070.0,107060.0,1.00977568]
[1750141646348,1.02800046,107070.0,107060.0,1.00977568]
[1750141647661,1.02800046,107070.0,107060.0,0.77923528]
[1750141649546,1.02800046,107070.0,107060.0,1.00977568]
[1750141650804,0.83056046,107070.0,107060.0,0.77923528]
[1750141651011,0.83056046,107070.0,107060.0,1.00977568]
[1750141654545,0.83056046,107070.0,107060.0,0.77923528]
[1750141654948,0.83056046,107070.0,107060.0,1.00977568]
[1750141655426,0.79350377,107070.0,107060.0,1.00977568]
[1750141656540,0.64936319,107070.0,107060.0,1.00977568]
[1750141656759,0.80280319,107070.0,107060.0,1.00977568]
[1750141656988,0.83985988,107070.0,107060.0,0.77923528]
[1750141657223,0.83985988,107070.0,107060.0,1.00977568]
[1750141657886,0.83685988,107070.0,107060.0,1.00877568]
[1750141658311,0.83685988,107070.0,107060.0,1.00977568]
[1750141658760,1.06740028,107070.0,107060.0,0.74893528]
[1750141658999,0.83685988,107070.0,107060.0,0.74893528]
[1750141659212,0.64433988,107070.0,107060.0,0.78293528]
[1750141659425,1.06840028,107070.0,107060.0,0.78293528]
[1750141661664,0.83785988,107070.0,107060.0,0.78293528]
[1750141661879,1.06840028,107070.0,107060.0,0.78293528]
[1750141665419,1.08390028,107070.0,107060.0,0.74993528]
[1750141665626,1.10030028,107070.0,107060.0,0.74993528]
[1750141665883,1.06840028,107070.0,107060.0,0.74993528]
[1750141667627,1.02832028,107070.0,107060.0,0.74993528]
[1750141667830,1.06836028,107070.0,107060.0,0.74993528]
[1750141671444,0.64433988,107070.0,107060.0,0.76593528]
[1750141671689,0.83781988,107070.0,107060.0,0.76593528]
[1750141672368,0.83781988,107070.0,107060.0,1.01157568]
[1750141674327,0.83781988,107070.0,107060.0,0.99647568]
[1750141674842,0.83781988,107070.0,107060.0,0.76593528]
[1750141675252,0.83781988,107070.0,107060.0,0.99647568]
[1750141675435,0.83781988,107070.0,107060.0,0.76593528]
[1750141675612,0.80076319,107070.0,107060.0,0.76593528]
[1750141675814,0.83781988,107070.0,107060.0,0.76593528]
[1750141676219,0.80076319,107070.0,107060.0,0.76593528]
[1750141676548,0.83781988,107070.0,107060.0,0.76593528]
[1750141676855,0.83781988,107070.0,107060.0,0.99647568]
[1750141677270,0.80076319,107070.0,107060.0,0.99647568]
[1750141677476,0.83781988,107070.0,107060.0,0.76593528]
[1750141679028,0.80076319,107070.0,107060.0,0.76593528]
[1750141679236,0.83781988,107070.0,107060.0,0.99647568]
[1750141679674,0.83781988,107070.0,107060.0,1.01277568]
[1750141681622,0.83781988,107070.0,107060.0,0.78223528]
[1750141682053,0.83781988,107070.0,107060.0,0.76593528]
[1750141682893,0.83781988,107070.0,107060.0,0.74993528]
[1750141684471,0.80076319,107070.0,107060.0,0.74993528]
[1750141684677,0.83781988,107070.0,107060.0,0.74993528]
[1750141686426,0.64433988,107070.0,107060.0,0.74993528]
[1750141686644,0.64433988,107070.0,107060.0,1.01197568]
[1750141686645,0.83777988,107070.0,107060.0,1.01197568]
[1750141688911,0.83777988,107070.0,107060.0,0.98047568]
[1750141691157,0.80072319,107070.0,107060.0,1.20802719]
[1750141691349,0.79138377,107070.0,107060.0,1.20802719]
[1750141691604,0.79138377,107070.0,107060.0,1.19868681]
[1750141691821,0.79138377,107070.0,107060.0,1.01187568]
[1750141691822,0.81910096,107070.0,107060.0,1.01187568]
[1750141692059,0.78204427,107070.0,107060.0,1.02121623]
[1750141692280,0.81910096,107070.0,107060.0,0.98047568]
[1750141692726,0.81910096,107070.0,107060.0,1.20802727]
[1750141693027,0.78204427,107070.0,107060.0,1.20802727]
[1750141693216,0.30732337,107070.0,107060.0,1.22670776]
[1750141693463,0.49778006,107070.0,107060.0,1.20802727]
[1750141693684,0.46072337,107070.0,107060.0,1.20802727]
[1750141693914,0.49778006,107070.0,107060.0,1.20802727]
[1750141694129,0.49778006,107070.0,107060.0,1.21736765]
[1750141694589,0.29500064,107070.0,107060.0,1.20802727]
[1750141694806,0.48844064,107070.0,107060.0,1.20802727]
[1750141695025,0.33504064,107070.0,107060.0,1.21736765]
[1750141695261,0.48840064,107070.0,107060.0,1.21736765]
[1750141696200,0.47906096,107070.0,107060.0,1.21736765]
[1750141697081,0.47906096,107070.0,107060.0,1.20802727]
[1750141697825,0.47906096,107070.0,107060.0,1.21736765]
[1750141699347,0.47906096,107070.0,107060.0,1.20802727]
[1750141699564,0.47906096,107070.0,107060.0,1.19272727]
[1750141700988,0.47906096,107070.0,107060.0,0.96218687]
[1750141701218,0.47906096,107070.0,107060.0,0.74993528]
[1750141702260,0.70960136,107070.0,107060.0,0.74993528]
[1750141702476,1.08100136,107070.0,107060.0,0.74993528]
[1750141702683,1.17724312,107070.0,107060.0,0.74993528]
[1750141709729,0.94670272,107070.0,107060.0,0.74993528]
[1750141709965,1.17724312,107070.0,107060.0,0.74993528]
[1750141718766,0.98384312,107070.0,107060.0,0.74993528]
[1750141719036,1.17716312,107070.0,107060.0,0.74993528]
[1750141731845,0.94662272,107070.0,107060.0,0.74993528]
[1750141732053,1.17716312,107070.0,107060.0,0.74993528]
[1750141735705,1.19949901,107070.0,107060.0,0.74993528]
[1750141736124,0.77563861,107070.0,107060.0,0.74993528]
[1750141736342,1.19941901,107070.0,107060.0,0.74993528]
[1750141740012,1.00617901,107070.0,107060.0,0.74993528]
[1750141740218,1.19941901,107070.0,107060.0,0.74993528]
[1750141755620,0.93739861,107070.0,107060.0,0.74993528]
[1750141755835,1.16793901,107070.0,107060.0,0.74993528]
[1750141756280,1.18333901,107070.0,107060.0,0.74993528]
[1750141756488,1.19913901,107070.0,107060.0,0.74993528]
[1750141760816,0.96859861,107070.0,107060.0,0.74993528]
[1750141761029,1.19913602,107070.0,107060.0,0.74993528]
[1750141764043,0.78415562,107070.0,107060.0,0.74993528]
[1750141764273,0.85620136,107070.0,107060.0,0.76613528]
[1750141764515,0.81874096,107070.0,107060.0,0.78273528]
[1750141764731,1.04928136,107070.0,107060.0,0.78273528]
[1750141764944,0.58860427,107070.0,107060.0,0.78273528]
[1750141765154,0.58860427,107070.0,107060.0,1.01327568]
[1750141765155,0.78168427,107070.0,107060.0,1.01327568]
[1750141765366,0.81874096,107070.0,107060.0,1.01327568]
[1750141765575,0.58860427,107070.0,107060.0,1.01327568]
[1750141765776,0.59794334,107070.0,107060.0,1.44930787]
[1750141765992,0.29786334,107070.0,107060.0,1.43996767]
[1750141766202,0.44168427,107070.0,107060.0,1.43996767]
[1750141766415,0.47874096,107070.0,107060.0,1.20942727]
[1750141766626,0.44168427,107070.0,107060.0,1.20942727]
[1750141767055,0.24860427,107070.0,107060.0,1.20942727]
[1750141767237,0.47874096,107070.0,107060.0,0.78273528]
[1750141767448,0.47874096,107070.0,107060.0,1.01327568]
[1750141768523,0.24860427,107070.0,107060.0,1.20942736]
[1750141768738,0.47870096,107070.0,107060.0,1.21876765]
[1750141769603,0.47870096,107070.0,107060.0,1.20942736]
[1750141769845,0.44164427,107070.0,107060.0,1.02261623]
[1750141770270,0.47870096,107070.0,107060.0,1.03195669]
[1750141771349,0.44164427,107070.0,107060.0,0.78273528]
[1750141771548,0.47870096,107070.0,107060.0,1.01327568]
[1750141773051,0.44164427,107070.0,107060.0,1.20942719]
[1750141773525,0.47870096,107070.0,107060.0,1.20008681]
[1750141773737,0.47870096,107070.0,107060.0,1.01327568]
[1750141774383,0.44164427,107070.0,107060.0,0.78273528]
[1750141774611,0.44164427,107070.0,107060.0,1.01327568]
[1750141775018,0.47870096,107070.0,107060.0,1.01327568]
[1750141777644,0.44164427,107070.0,107060.0,1.02261623]
[1750141777850,0.44164427,107070.0,107060.0,1.21876782]
[1750141778449,0.44164427,107070.0,107060.0,1.20942736]
[1750141778675,0.47870096,107070.0,107060.0,1.20942736]
[1750141778894,0.47870096,107070.0,107060.0,1.01327568]
[1750141780239,0.47870096,107070.0,107060.0,0.78273528]
[1750141780458,0.47870096,107070.0,107060.0,1.01327568]
[1750141780679,0.47862096,107070.0,107060.0,1.01327568]
[1750141780910,0.44156427,107070.0,107060.0,1.20942719]
[1750141781348,0.44156427,107070.0,107060.0,1.21876748]
[1750141781572,0.45090377,107070.0,107060.0,1.21876748]
[1750141781780,0.48796046,107070.0,107060.0,1.21876748]
[1750141782201,0.47862096,107070.0,107060.0,1.20942719]
[1750141782416,0.49730005,107070.0,107060.0,1.21876748]
[1750141783493,0.49730005,107070.0,107060.0,1.20942719]
[1750141783930,0.48796055,107070.0,107060.0,1.20942719]
[1750141784585,0.47862096,107070.0,107060.0,1.01327568]
[1750141792877,0.47862096,107070.0,107060.0,1.02261623]
[1750141793958,0.44156427,107070.0,107060.0,1.20942736]
[1750141794159,0.47854096,107070.0,107060.0,1.22810811]
[1750141794602,0.47854096,107070.0,107060.0,1.45864851]
[1750141795260,0.47854096,107070.0,107060.0,1.44930822]
[1750141795424,0.47854096,107070.0,107060.0,1.4586486]
[1750141795643,0.47754096,107070.0,107060.0,1.4576486]
[1750141795989,0.47854096,107070.0,107060.0,1.23849403]
[1750141796195,0.47854096,107070.0,107060.0,1.2291082]
[1750141796386,0.49721988,107070.0,107060.0,1.46998872]
[1750141796591,0.49721988,107070.0,107060.0,1.46998889]
[1750141796796,0.34421988,107070.0,107060.0,1.49386986]
[1750141798542,0.30716319,107070.0,107060.0,1.49386986]
[1750141798750,0.35355956,107070.0,107060.0,1.64686934]
[1750141799030,0.16676588,107070.0,107060.0,1.64686934]
[1750141799254,0.03659762,107070.0,107060.0,1.74311058]
[1750141799472,0.03659762,107070.0,107060.0,1.75224643]
[1750141800140,0.03659762,107070.0,107060.0,1.75124643]
[1750141800820,0.03659762,107070.0,107060.0,1.78229143]
[1750141801717,0.03659762,107070.0,107060.0,1.77929143]
[1750141801718,0.03559762,107070.0,107060.0,1.77929143]
[1750141802181,0.03659762,107070.0,107060.0,1.78229143]
[1750141802396,0.03659762,107070.0,107060.0,2.01283183]
[1750141802626,0.03659762,107070.0,107060.0,1.78225143]
[1750141803515,0.03559762,107070.0,107060.0,1.62329143]
[1750141803727,0.03659762,107070.0,107060.0,1.77925143]
[1750141803964,0.03659762,107070.0,107060.0,1.78225143]
[1750141806425,0.03659762,107070.0,107060.0,1.62929143]
[1750141806684,0.03659762,107070.0,107060.0,1.78225143]
[1750141806897,0.03659762,107070.0,107060.0,1.62929143]
[1750141807106,0.03659762,107070.0,107060.0,1.32117063]
[1750141807334,0.03659762,107070.0,107060.0,1.78225143]
[1750141809533,0.03659762,107070.0,107060.0,1.62929143]
[1750141809749,0.03659762,107070.0,107060.0,1.78221143]
[1750141812505,0.04593651,107070.0,107060.0,1.62929143]
[1750141812637,0.04593651,107070.0,107060.0,1.78221143]
[1750141812638,0.03659762,107070.0,107060.0,1.78221143]
[1750141813972,0.03659762,107070.0,107060.0,1.62929143]
[1750141814183,0.03659762,107070.0,107060.0,1.78221143]
[1750141814910,0.05527567,107070.0,107060.0,1.78221143]
[1750141815650,0.05527558,107070.0,107060.0,1.78221143]
[1750141815877,0.04593651,107070.0,107060.0,1.78221143]
[1750141816478,0.05527558,107070.0,107060.0,1.78221143]
[1750141816848,0.04593651,107070.0,107060.0,1.78221143]
[1750141816993,0.05527558,107070.0,107060.0,1.78221143]
[1750141817386,0.04593651,107070.0,107060.0,1.78221143]
[1750141818061,0.05527549,107070.0,107060.0,1.78221143]
[1750141819225,0.06461465,107070.0,107060.0,1.78221143]
[1750141821694,0.05527549,107070.0,107060.0,1.78221143]
[1750141821915,0.06461465,107070.0,107060.0,1.78221143]
[1750141822568,0.3351397,107070.0,107060.0,0.75393528]
[1750141822791,0.3748997,107070.0,107060.0,0.75393528]
[1750141823010,0.3748997,107070.0,107060.0,0.98447568]
[1750141823230,0.3748997,107070.0,107060.0,1.41116776]
[1750141823448,0.30416632,107070.0,107060.0,1.66962981]
[1750141823660,0.28846632,107070.0,107060.0,1.68417066]
[1750141823878,0.27912708,107070.0,107060.0,1.52195037]
[1750141824090,0.29532708,107070.0,107060.0,1.67483037]
[1750141824559,0.29532708,107070.0,107060.0,1.53129083]
[1750141824785,0.31142708,107070.0,107060.0,1.68417083]
[1750141825027,0.30208758,107070.0,107060.0,1.68417083]
[1750141826710,0.30208758,107070.0,107060.0,1.69351121]
[1750141826922,0.26978758,107070.0,107060.0,1.47213575]
[1750141827495,0.26978758,107070.0,107060.0,1.46279555]
[1750141827699,0.28478758,107070.0,107060.0,1.46279555]
[1750141829952,0.28478758,107070.0,107060.0,1.47213575]
[1750141831303,0.05527602,107070.0,107060.0,1.48147517]
[1750141831623,0.2514092,107070.0,107060.0,1.4627952]
[1750141831997,0.27912682,107070.0,107060.0,1.453455]
[1750141832446,0.26978749,107070.0,107060.0,1.453455]
[1750141833068,0.26978749,107070.0,107060.0,1.300575]
[1750141833248,0.26978749,107070.0,107060.0,1.453455]
[1750141833501,0.28488749,107070.0,107060.0,1.453455]
[1750141833720,0.27554799,107070.0,107060.0,1.24796303]
[1750141833929,0.29194799,107070.0,107060.0,1.09508303]
[1750141834169,0.31716096,107070.0,107060.0,0.90681528]
[1750141834399,1.0404061,107070.0,107060.0,0.75393528]
[1750141834819,1.13664786,107070.0,107060.0,0.75393528]
[1750141835232,1.13664786,107070.0,107060.0,0.74793528]
[1750141835233,1.13564786,107070.0,107060.0,0.74793528]
[1750141835446,1.13564786,107070.0,107060.0,0.74893528]
[1750141835667,1.13664786,107070.0,107060.0,0.75293528]
[1750141842856,0.98376786,107070.0,107060.0,0.75293528]
[1750141843069,1.17640786,107070.0,107060.0,0.75293528]
[1750141849298,0.98376786,107070.0,107060.0,0.75293528]
[1750141849538,1.17636786,107070.0,107060.0,0.75293528]
[1750141851758,0.75340272,107070.0,107060.0,0.75293528]
[1750141851984,0.65716096,107070.0,107060.0,0.75293528]
[1750141852219,0.84972096,107070.0,107060.0,0.75293528]
[1750141852754,0.65716096,107070.0,107060.0,0.75293528]
[1750141852969,0.81266427,107070.0,107060.0,0.75293528]
[1750141853185,0.62010427,107070.0,107060.0,0.75293528]
[1750141853395,0.81266427,107070.0,107060.0,0.75293528]
[1750141853995,0.62010427,107070.0,107060.0,0.75293528]
[1750141854476,0.59794386,107070.0,107060.0,1.1794521]
[1750141854694,0.59794386,107070.0,107060.0,1.2112521]
[1750141854695,0.63766386,107070.0,107060.0,1.2112521]
[1750141854931,0.82756055,107070.0,107060.0,1.22993294]
[1750141855383,0.82756055,107070.0,107060.0,0.75293528]
[1750141857782,0.79050386,107070.0,107060.0,0.75293528]
[1750141857986,0.82756055,107070.0,107060.0,0.75293528]
[1750141860632,0.84356055,107070.0,107060.0,0.75293528]
[1750141860841,0.86016055,107070.0,107060.0,0.75293528]
[1750141862602,1.09052569,107070.0,107060.0,0.75293528]
[1750141863072,1.18676745,107070.0,107060.0,0.75293528]
[1750141866391,1.21482545,107070.0,107060.0,0.75293528]
[1750141868651,0.98446031,107070.0,107060.0,0.75293528]
[1750141868859,1.21482545,107070.0,107060.0,0.75293528]
[1750141870371,0.79190031,107070.0,107060.0,0.75293528]
[1750141870610,0.95640231,107070.0,107060.0,0.75293528]
[1750141871467,1.18676745,107070.0,107060.0,0.75293528]
[1750141877234,1.53561533,107070.0,107060.0,0.75293528]
[1750141877660,1.43946611,107070.0,107060.0,0.75293528]
[1750141878089,1.46752611,107070.0,107060.0,0.75293528]
[1750141878294,1.46652611,107070.0,107060.0,0.74893528]
[1750141878743,1.46852611,107070.0,107060.0,0.74993528]
[1750141878959,1.46852611,107070.0,107060.0,0.74893528]
[1750141879374,1.47152611,107070.0,107060.0,0.74893528]
[1750141880020,1.24116097,107070.0,107060.0,0.74893528]
[1750141880657,1.47152611,107070.0,107060.0,0.74893528]
[1750141882350,0.81823583,107070.0,107060.0,0.74893528]
[1750141882575,1.24112097,107070.0,107060.0,0.74893528]
[1750141884735,1.21878745,107070.0,107060.0,0.74893528]
[1750141884949,1.24111098,107070.0,107060.0,0.74893528]
[1750141885165,1.21878745,107070.0,107060.0,0.74893528]
[1750141885346,1.44915259,107070.0,107060.0,0.74893528]
[1750141887201,1.5676266,107070.0,107060.0,0.74893528]
[1750141887827,1.04859224,107070.0,107060.0,0.74893528]
[1750141888060,1.21878745,107070.0,107060.0,0.74893528]
[1750141888251,1.471481,107070.0,107060.0,0.74893528]
[1750141888460,1.49939151,107070.0,107060.0,0.74893528]
[1750141889353,1.471481,107070.0,107060.0,0.74893528]
[1750141890385,1.24190431,107070.0,107060.0,0.74893528]
[1750141890631,1.471601,107070.0,107060.0,0.74893528]
[1750141892418,1.49951151,107070.0,107060.0,0.74893528]
[1750141893032,1.30687151,107070.0,107060.0,0.74893528]
[1750141893229,1.49947151,107070.0,107060.0,0.74893528]
[1750141893431,1.471561,107070.0,107060.0,0.74893528]
[1750141896289,1.03874123,107070.0,107060.0,0.74893528]
[1750141896506,1.59562073,107070.0,107060.0,0.74893528]
[1750141897345,1.55856404,107070.0,107060.0,0.74893528]
[1750141897720,1.59562073,107070.0,107060.0,0.74893528]
[1750141900203,1.55856404,107070.0,107060.0,0.74893528]
[1750141900625,1.59562073,107070.0,107060.0,0.74893528]
[1750141902625,6.93528334,107070.0,107060.0,0.74893528]
[1750141902843,6.7049182,107070.0,107060.0,0.65165289]
[1750141903068,6.7049182,107070.0,107060.0,0.60491567]
[1750141903288,6.7049182,107070.0,107060.0,0.59091567]
[1750141903515,6.73282384,107070.0,107060.0,0.54417845]
[1750141903761,6.97772983,107070.0,107060.0,0.45943845]
[1750141903987,6.97772983,107070.0,107020.0,0.00090069]
[1750141903988,0.59847615,107030.0,107020.0,0.00090069]
[1750141904209,1.43392068,107030.0,107020.0,0.00090069]
[1750141904669,1.46199168,107030.0,107020.0,0.03210069]
[1750141905126,1.26903168,107030.0,107020.0,0.03210069]
[1750141905346,1.46250386,107030.0,107020.0,0.03210069]
[1750141905580,1.24717545,107030.0,107020.0,0.01600069]
[1750141905839,1.26946268,107030.0,107020.0,0.00090069]
[1750141906056,1.46346268,107030.0,107020.0,0.00190069]
[1750141906278,1.46446268,107030.0,107020.0,0.00190069]
[1750141906484,1.44217545,107030.0,107020.0,0.00190069]
[1750141906702,1.32736214,107030.0,107020.0,0.00190069]
[1750141906915,1.34963854,107030.0,107020.0,0.00190069]
[1750141907176,1.54259854,107030.0,107020.0,0.00190069]
[1750141909603,1.52040214,107030.0,107020.0,0.00190069]
[1750141909817,1.32736214,107030.0,107020.0,0.00190069]
[1750141910042,1.14384778,107030.0,107020.0,0.00190069]
[1750141910246,1.37421292,107030.0,107020.0,0.00190069]
[1750141912900,0.20558764,107010.0,107000.0,0.00209]
[1750141913116,1.0877042,107010.0,107000.0,0.00209]
[1750141914248,0.70409906,107010.0,107000.0,0.00209]
[1750141914468,0.89741906,107010.0,107000.0,0.00209]
[1750141914683,0.90768824,107010.0,107000.0,0.00609]
[1750141915129,0.90768824,107010.0,107000.0,0.00709]
[1750141917834,0.71436824,107010.0,107000.0,0.00709]
[1750141918058,0.67731155,107010.0,107000.0,0.00709]
[1750141918513,0.87059155,107010.0,107000.0,0.00709]
[1750141918972,0.90768824,107010.0,107000.0,0.00709]
[1750141920056,0.90772824,107010.0,107000.0,0.00709]
[1750141920548,1.13809338,107010.0,107000.0,0.00709]
[1750141921264,1.10103669,107010.0,107000.0,0.00709]
[1750141921483,1.13809338,107010.0,107000.0,0.00709]
[1750141921707,0.19627984,106990.0,106980.0,0.16280644]
[1750141921932,0.38689653,106990.0,106980.0,0.16280644]
[1750141922382,0.20564503,106980.0,106970.0,0.31329034]
[1750141922619,0.24556503,106980.0,106970.0,0.4095321]
[1750141923120,0.24556503,106980.0,106970.0,0.33535061]
[1750141923590,0.25491204,106980.0,106970.0,0.56571575]
[1750141924290,0.25491204,106980.0,106970.0,0.55636778]
[1750141924499,0.25691204,106980.0,106970.0,0.56936778]
[1750141924711,0.23394839,106980.0,106970.0,0.57871558]
[1750141925201,0.24329584,106980.0,106970.0,0.57871558]
[1750141925435,0.24329584,106980.0,106970.0,0.56001972]
[1750141925436,0.42090045,106980.0,106970.0,0.56001972]
[1750141926086,0.42090045,106980.0,106970.0,0.56936778]
[1750141926531,0.42090045,106980.0,106970.0,0.56001972]
[1750141926744,0.42090045,106980.0,106970.0,0.55067157]
[1750141926745,0.25791318,106980.0,106970.0,0.55067157]
[1750141927170,0.25791318,106980.0,106970.0,0.56001972]
[1750141927375,0.25791318,106980.0,106970.0,0.55067157]
[1750141927580,0.24856582,106980.0,106970.0,0.55067157]
[1750141927810,0.24856582,106980.0,106970.0,0.56001981]
[1750141928739,0.24856582,106980.0,106970.0,0.56936796]
[1750141928942,0.24856582,106980.0,106970.0,0.57871602]
[1750141929976,0.24856582,106980.0,106970.0,0.58806391]
[1750141931577,0.06161499,106980.0,106970.0,0.58806391]
[1750141931798,0.02169464,106980.0,106970.0,0.58806339]
[1750141932623,0.02169412,106980.0,106970.0,0.58806339]
[1750141932863,0.03104148,106980.0,106970.0,0.58806339]
[1750141933074,0.04038902,106980.0,106970.0,0.58806339]
[1750141933507,0.22733985,106980.0,106970.0,0.5693677]
[1750141933711,0.21799292,106980.0,106970.0,0.5693677]
[1750141934147,0.0216942,106980.0,106970.0,0.5787155]
[1750141934360,0.04038857,106980.0,106970.0,0.5787155]
[1750141934572,0.04973611,106980.0,106970.0,0.57871567]
[1750141934781,0.22734001,106980.0,106970.0,0.57871567]
[1750141934990,0.217993,106980.0,106970.0,0.57871567]
[1750141935229,0.20864573,106980.0,106970.0,0.55067149]
[1750141935443,0.19929837,106980.0,106970.0,0.55067149]
[1750141935662,0.19929837,106980.0,106970.0,0.1333393]
[1750141935866,0.19929837,106980.0,106970.0,0.56002098]
[1750141936075,0.22451134,106980.0,106970.0,0.47312728]
[1750141936332,0.22451134,106980.0,106970.0,0.46377922]
[1750141936977,0.22451134,106980.0,106970.0,0.47312737]
[1750141937649,0.22451134,106980.0,106970.0,0.4637793]
[1750141938093,0.22451134,106980.0,106970.0,0.47312754]
[1750141938537,0.22451134,106980.0,106970.0,0.4637793]
[1750141938788,0.2151638,106980.0,106970.0,0.45443098]
[1750141939236,0.2151638,106980.0,106970.0,0.26746268]
[1750141939486,0.2151638,106980.0,106970.0,0.25811427]
[1750141941442,0.2151638,106980.0,106970.0,0.24357342]
[1750141942116,0.2141638,106980.0,106970.0,0.23857342]
[1750141942326,0.2121638,106980.0,106970.0,0.23057342]
[1750141942534,0.24922049,106980.0,106970.0,0.00620828]
[1750141942771,0.25022049,106980.0,106970.0,0.00620828]
[1750141943406,0.25122049,106980.0,106970.0,0.01020828]
[1750141944892,0.25122049,106980.0,106970.0,0.24057342]
[1750141945809,0.25122049,106980.0,106970.0,0.01020828]
[1750141946933,0.44530049,106980.0,106970.0,0.01020828]
[1750141951192,0.44530049,106980.0,106970.0,0.24057342]
[1750141951193,0.44526049,106980.0,106970.0,0.24057342]
[1750141951900,0.19829828,106980.0,106970.0,0.43689004]
[1750141952134,0.19829828,106980.0,106970.0,0.56636851]
[1750141952135,0.03004139,106980.0,106970.0,0.56636851]
[1750141952408,0.27060553,106980.0,106970.0,0.56636851]
[1750141952924,0.26125799,106980.0,106970.0,0.56636851]
[1750141953134,0.23354866,106980.0,106970.0,0.56636851]
[1750141953552,0.0300413,106980.0,106970.0,0.56636851]
[1750141953769,0.23350866,106980.0,106970.0,0.56636851]
[1750141953980,0.03938866,106980.0,106970.0,0.56636851]
[1750141954190,0.2241613,106980.0,106970.0,0.56636851]
[1750141954623,0.44816882,106980.0,106970.0,0.10645004]
[1750141954838,0.46403512,106980.0,106970.0,0.24057342]
[1750141955744,0.26991512,106980.0,106970.0,0.24057342]
[1750141955956,0.46411512,106980.0,106970.0,0.24057342]
[1750141956362,0.42705843,106980.0,106970.0,0.24057342]
[1750141956571,0.46411512,106980.0,106970.0,0.24057342]
[1750141956793,0.46411512,106980.0,106970.0,0.24992183]
[1750141957831,0.26991512,106980.0,106970.0,0.44623845]
[1750141958114,0.46415512,106980.0,106970.0,0.44623845]
[1750141958780,0.25199133,106980.0,106970.0,0.47947534]